Cogmind - Beta 13 @@@ ROGUE MODE // 2024.04.15 @ 12:37:44 Player: Thaleia Result: Destroyed by Y-54 Guardian with Flak Gun Performance ------------- Evolutions (3) 1500 Regions Visited (6) 1200 Robots Destroyed (62) 310 Value Destroyed (2212) 2212 Prototype IDs (3) 60 Alien Tech Used (0) 0 Bonus (0) 0 TOTAL SCORE: 5282 Bonus ------- None Cogmind --------- Core Integrity 0/700 Matter 123/300 Energy 420/430 System Corruption 21% Temperature Cool (15) Movement Walking (126) Location -7/Factory Parts ------- > --- POWER (2) -------- Nuclear Core Improved Deuterium Engine > --- PROPULSION (3) --- Carbon-fiber Leg Improved Titanium Leg Improved Titanium Leg > --- UTILITY (6) ------ Targeting Computer Improved Melee Analysis Suite Core Shielding > --- WEAPON (2) ------- Gauss Rifle Welding Torch > --- INVENTORY (5) ---- Aluminum Leg Advanced Terrain Scan Processor Mini Grenade Launcher Remote Datajack Peak State ------------ > --- POWER ------------ Light Deuterium Engine Heavy Deuterium Engine > --- PROPULSION ------- Armored Treads Armored Treads Armored Treads > --- UTILITY ---------- Large Storage Unit Visual Processing Unit Improved Sensor Array Signal Interpreter Medium Reactive Plating Long-range Tractor Beam > --- WEAPON ----------- Autogun Flak Cannon > --- INVENTORY -------- Light Deuterium Engine Light Nuclear Core Light Nuclear Core Armored Treads Armored Treads Advanced Weight Redist. System Machine Analyzer Improved Sensor Array Improved Terrain Scanner Improved Terrain Scan Processor Improved Light Cannon Improved Light Cannon Mini Grenade Launcher Datajack [Rating: 39] Favorites ----------- Power Light Deuterium Engine Engine Light Deuterium Engine Power Core Light Nuclear Core Propulsion Armored Treads Treads Armored Treads Leg Improved Titanium Leg Wheel Armored Wheel Utility Improved Sensor Array Device Improved Sensor Array Storage Small Storage Unit Processor Signal Interpreter Protection Medium Reactive Plating Weapon Improved Light Cannon Energy Gun Shock Rifle Ballistic Gun Autogun Ballistic Cannon Improved Light Cannon Launcher Mini Grenade Launcher Special Weapon Welding Torch Build | -11 -10 -9 -8 -7 -7 -7 ------- Run | Yrd Mat Mat Mat Fac Was Fac Slots Evolved 6 | . . 2 2 2 . . Power 1 | . . . . 1 . . Propulsion 1 | . . 1 . . . . Utility 4 | . . 1 2 1 . . Weapon . | . . . . . . . Parts Attached 84 | 6 11 16 25 2 1 23 Power 15 | 1 . 4 4 1 . 5 Engine 9 | 1 . 3 3 1 . 1 Core 6 | . . 1 1 . . 4 Reactor . | . . . . . . . Propulsion 20 | 2 5 3 5 . . 5 Treads 12 | 2 2 3 5 . . . Leg 5 | . . . . . . 5 Wheel 3 | . 3 . . . . . Hover . | . . . . . . . Flight . | . . . . . . . Utility 23 | 1 3 4 8 1 1 5 Device 14 | . 3 2 6 . 1 2 Storage 2 | 1 . 1 . . . . Processor 4 | . . 1 1 . . 2 Hackware . | . . . . . . . Protection 3 | . . . 1 1 . 1 Artifact . | . . . . . . . Weapon 26 | 2 3 5 8 . . 8 Energy Gun 4 | 1 . . . . . 3 Energy Cannon . | . . . . . . . Ballistic Gun 10 | 1 1 2 3 . . 3 Ballistic Cannon 8 | . 2 2 3 . . 1 Launcher 3 | . . 1 2 . . . Special Weapon 1 | . . . . . . 1 Impact Weapon . | . . . . . . . Slashing Weapon . | . . . . . . . Piercing Weapon . | . . . . . . . Special Melee Weapon . | . . . . . . . Unidentified Prototypes 3 | . . 1 . 1 . 1 Corrupted Parts 1 | . . . . . . 1 System Corruption 9 | . . . . . . 9 Parts Lost 18 | . 1 2 6 . 3 6 Power 3 | . . . 1 . . 2 Propulsion 2 | . . . 1 . 1 . Utility 7 | . . 1 3 . 2 1 Weapon 6 | . 1 1 1 . . 3 Highest Loss Streak 3 | . 1 2 3 . 3 3 To Critical Strikes . | . . . . . . . Average Slot Usage (%) 79 | . 97 99 96 92 49 30 Engine 6 | . 14 9 2 7 2 . Core 3 | . . 1 5 . . 6 Treads 21 | . 27 32 26 23 9 . Device 11 | . 13 10 16 15 12 4 Storage 7 | . 14 11 9 7 2 . Processor 7 | . . 10 11 15 11 1 Protection 1 | . . . 5 7 2 . Ballistic Gun 9 | . 13 10 13 7 2 4 Ballistic Cannon 6 | . 11 9 3 7 2 3 Naked Turns 89 | . . . . . 54 35 Heaviest Build 56 | 13 16 30 37 56 56 23 Greatest Support 60 | 40 40 60 60 60 60 55 Greatest Overweight (x) 6 | . . . . . 1 6 Average Overweight (x) . | . . . . . . 2 Largest Inventory Capacity 15 | 8 8 15 15 15 15 5 Average Capacity 9 | 7 8 8 15 15 9 5 Most Carried 15 | 3 8 8 15 15 15 5 Average Carried 8 | 1 7 7 12 14 9 4 Final Capacity 15 | 8 8 15 15 15 5 5 Final Carried 15 | 3 8 8 15 15 5 4 Class Distribution -------------------- 71% | Mutant 17% | Skirmisher 9% | Scavenger-Mutant Dominant Class ---------------- Mutant | -10/Materials Mutant | -9/Materials Mutant | -8/Materials Skirmisher | -7/Factory Mutant | -7/Waste Mutant | -7/Factory Resources | -11 -10 -9 -8 -7 -7 -7 ----------- Run | Yrd Mat Mat Mat Fac Was Fac Matter Collected 1965 | 183 292 421 732 14 . 323 Remotely 645 | . 292 . 339 14 . . Salvage Created 2055 | . 394 595 775 14 . 277 Parts 134 | . 22 52 39 . . 21 Haulers Intercepted . | . . . . . . . Recyclers Shooed 5 | . . 1 2 . . 2 Parts Field Recycled . | . . . . . . . Retrieved Matter . | . . . . . . . Parts Self-Destructed . | . . . . . . . Prevented . | . . . . . . . Kills | -11 -10 -9 -8 -7 -7 -7 ------- Run | Yrd Mat Mat Mat Fac Was Fac Combat Hostiles Destroyed 53 | . 10 19 18 1 . 5 Melee 2 | . . . 1 . . 1 Guns 25 | . 1 11 8 1 . 4 Cannons 20 | . 9 6 5 . . . AOE 6 | . . 2 4 . . . Classes Destroyed 10 | . 4 1 3 . . 2 Worker 2 | . . . 1 . . 1 Builder 1 | . . . 1 . . . Recycler 1 | . 1 . . . . . Watcher 5 | . 1 2 2 . . . Swarmer 9 | . 2 6 . . . 1 Grunt 34 | . 8 10 15 . . 1 Duelist 2 | . . . . . . 2 Sentry 5 | . . 3 2 . . . Hunter 2 | . . . 1 1 . . Programmer 1 | . . . . . . 1 Best Kill Streak 5 | . 3 5 3 1 . 3 Combat Bots Only 5 | . 2 5 3 1 . 3 Max Kills in Single Turn 3 | . 1 2 3 1 . 1 Gunslinging . | . . . . . . . Exploded 2 | . . 2 1 . . . Melee 1 | . . . 1 . . 1 Uniques/NPCs Destroyed . | . . . . . . . Combat | -11 -10 -9 -8 -7 -7 -7 -------- Run | Yrd Mat Mat Mat Fac Was Fac Hostile Shots Fired 509 | . 38 111 173 18 4 165 Missed 170 | . 7 38 50 3 . 72 Damage Taken 4734 | . 352 919 1614 152 188 1509 Core 1039 | . 11 120 208 7 188 505 Absorbed by Shields . | . . . . . . . Redirected to Shielding 5 | . . . . . . 5 Ignored by Resistances 72 | . . . . 72 . . Core Remaining (%) 81 | 100 95 70 62 . . . Volleys Fired 190 | . 27 53 71 6 3 30 Largest 2 | . 2 2 2 2 2 2 Hottest 67 | . 59 62 67 67 67 67 Shots Fired 344 | . 49 101 139 12 6 37 Gun 234 | . 27 49 115 6 3 34 Cannon 100 | . 22 49 17 6 3 3 Launcher 10 | . . 3 7 . . . Special . | . . . . . . . Kinetic 323 | . 49 98 132 12 6 26 Thermal . | . . . . . . . Explosive 10 | . . 3 7 . . . Electromagnetic 11 | . . . . . . 11 Robot Hit Streak 17 | . 7 11 17 3 4 7 Robot Miss Streak 4 | . 4 4 4 2 4 4 Penetration Max 1 | . . . . . . 1 Secondary Targets 2 | . . . 1 . . 1 Max Gunslinging Chain 1 | . . . 1 . . 1 Shots Hit Robots 208 | . 32 51 85 9 5 26 Core Hits 121 | . 17 27 57 8 . 12 Critical Kills . | . . . . . . . Critical Parts Destroyed . | . . . . . . . Critical Strikes . | . . . . . . . Melee Attacks . | . . . . . . . Impact . | . . . . . . . Slashing . | . . . . . . . Piercing . | . . . . . . . Sneak Attacks . | . . . . . . . Combat Hostiles . | . . . . . . . Follow-up Attacks . | . . . . . . . Damage Inflicted 4770 | . 491 1117 2308 129 111 614 Guns 2267 | . 155 412 1101 45 27 527 Cannons 1319 | . 331 476 322 84 84 22 Explosions 1056 | . . 219 837 . . . Melee . | . . . . . . . Ramming 128 | . 5 10 48 . . 65 Kinetic 3457 | . 486 888 1423 129 111 420 Thermal . | . . . . . . . Explosive 1056 | . . 219 837 . . . Electromagnetic 129 | . . . . . . 129 Impact . | . . . . . . . Slashing . | . . . . . . . Piercing . | . . . . . . . Highest Corruption 21 | . . . . . . 21 Average Corruption 13 | . . . . . . 13 Corruption Purged . | . . . . . . . Corruption Blocked . | . . . . . . . Effects 28 | . . . . . . 28 Message Errors 3 | . . . . . . 3 Matter Fused 11 | . . . . . . 11 Heat Flow Errors 4 | . . . . . . 4 Energy Discharges 3 | . . . . . . 3 Parts Rejected 1 | . . . . . . 1 Data Loss (minor) 4 | . . . . . . 4 Data Loss (major) 1 | . . . . . . 1 Misfires 1 | . . . . . . 1 Overload Shots . | . . . . . . . Overflow Damage 26 | . . 16 10 . . . Projectiles 3 | . . 3 . . . . Explosions 23 | . . 13 10 . . . Melee . | . . . . . . . Knockbacks 20 | . 2 6 10 2 . . Impact 1 | . . . 1 . . . Kinetic 18 | . 2 5 9 2 . . Secondary 1 | . . 1 . . . . Self-Inflicted Damage 74 | . . . 52 . . 22 Shots 3 | . . . 3 . . . Rammed 54 | . . 2 19 . . 33 Targets Rammed 58 | . 1 2 19 . . 36 Kicked 3 | . . . . . . 3 Crushed 1 | . 1 . . . . . Highest Temperature 210 | . 88 45 50 40 40 210 Average Temperature 24 | . 29 21 15 21 24 52 Received Heat Transfer 1278 | . 189 399 594 . . 96 Siege Activations . | . . . . . . . Robots Corrupted . | . . . . . . . Combat Hostiles . | . . . . . . . Parts Fried 1 | . . . . . . 1 Impact Corruptions . | . . . . . . . Robots Melted . | . . . . . . . Combat Hostiles . | . . . . . . . Parts Melted . | . . . . . . . Heat Transferred . | . . . . . . . Parts Sabotaged . | . . . . . . . Parts Stolen . | . . . . . . . Parts Stripped . | . . . . . . . Power Chain Reactions . | . . . . . . . Alert | -11 -10 -9 -8 -7 -7 -7 ------- Run | Yrd Mat Mat Mat Fac Was Fac Peak Influence 366 | . 187 339 366 137 10 100 Initial 126 | . . . 126 118 10 . Average 86 | . 67 92 207 78 2 13 Maximum Alert Level 1 | . . 1 1 . . . Low Security (%) 85 | 100 100 82 51 100 100 100 Level 1 14 | . . 17 48 . . . Level 2 . | . . . . . . . Level 3 . | . . . . . . . Level 4 . | . . . . . . . Level 5 . | . . . . . . . High Security . | . . . . . . . Max Security . | . . . . . . . Squads Dispatched 9 | . 1 2 3 1 . 2 Investigation 2 | . 1 1 . . . . Extermination 1 | . . . . . . 1 Reinforcement 6 | . . 1 3 1 . 1 Assault . | . . . . . . . Garrison . | . . . . . . . Intercept . | . . . . . . . Searches Triggered . | . . . . . . . Construction Impeded 3 | . . . 2 . . 1 Haulers Reinforced . | . . . . . . . Active Scanning Responses . | . . . . . . . Cargo Convoy Interrupts . | . . . . . . . Stealth | -11 -10 -9 -8 -7 -7 -7 --------- Run | Yrd Mat Mat Mat Fac Was Fac Distress Signals 8 | . 2 2 4 . . . Communications Jammed . | . . . . . . . Distress Signals . | . . . . . . . Times Spotted 96 | . 13 30 32 2 6 13 Peak Tracking Total 6 | . 3 5 6 1 6 4 Tactical Retreats 5 | . . 3 2 . . . Traps | -11 -10 -9 -8 -7 -7 -7 ------- Run | Yrd Mat Mat Mat Fac Was Fac Traps Triggered 4 | . . 1 . 1 . 2 Indirectly . | . . . . . . . Trap Hack Attempts . | . . . . . . . Triggered . | . . . . . . . Disarmed . | . . . . . . . Reprogrammed . | . . . . . . . Reused . | . . . . . . . Traps Extracted . | . . . . . . . Installed . | . . . . . . . Triggered . | . . . . . . . Objects Rigged 1 | . . 1 . . . . Machines | -11 -10 -9 -8 -7 -7 -7 ---------- Run | Yrd Mat Mat Mat Fac Was Fac Machines Disabled 8 | . 1 2 3 . . 2 Max in Single Turn 1 | . 1 1 1 . . 1 Machines Repaired . | . . . . . . . Machines Dismantled . | . . . . . . . Machines Sabotaged . | . . . . . . . Overloaded Fab Kills . | . . . . . . . Hacking | -11 -10 -9 -8 -7 -7 -7 --------- Run | Yrd Mat Mat Mat Fac Was Fac Machines Accessed 8 | . 1 4 2 1 . . Terminals 6 | . 1 3 1 1 . . Fabricators . | . . . . . . . Repair Stations . | . . . . . . . Recycling Units 1 | . . 1 . . . . Scanalyzers 1 | . . . 1 . . . Garrison Access . | . . . . . . . Total Hacks 15 | . 2 6 4 3 . . Successful 10 | . . 5 3 2 . . Failed 5 | . 2 1 1 1 . . Catastrophic . | . . . . . . . Database Lockouts . | . . . . . . . Manual 3 | . 2 1 . . . . Terminals 11 | . 2 4 2 3 . . Fabricators . | . . . . . . . Repair Stations . | . . . . . . . Recycling Units 2 | . . 2 . . . . Scanalyzers 2 | . . . 2 . . . Garrison Access . | . . . . . . . Terminal Hacks 5 | . . 2 1 2 . . Part Schematic 1 | . . . . 1 . . Alert Level 1 | . . . 1 . . . Locate Traps 1 | . . 1 . . . . Dispatch Records 1 | . . . . 1 . . Zone Layout 1 | . . 1 . . . . Fabricator Hacks . | . . . . . . . Repair Station Hacks . | . . . . . . . Recycling Unit Hacks 2 | . . 2 . . . . Report Inventory 1 | . . 1 . . . . Retrieve Components 1 | . . 1 . . . . Scanalyzer 2 | . . . 2 . . . Insert Component 1 | . . . 1 . . . Analyze 1 | . . . 1 . . . Garrison Access Hacks . | . . . . . . . Unauthorized Hacks 1 | . . 1 . . . . Terminals 1 | . . 1 . . . . Detonate 1 | . . 1 . . . . Fabricators . | . . . . . . . Repair Stations . | . . . . . . . Recycling Units . | . . . . . . . Scanalyzers . | . . . . . . . Garrison Access . | . . . . . . . Data Cores Recovered . | . . . . . . . Used . | . . . . . . . Hacking Detections 4 | . 1 2 1 . . . Full Trace Events 1 | . 1 . . . . . Feedback Events . | . . . . . . . Feedback Blocked . | . . . . . . . Robot Schematics Acquired . | . . . . . . . Robots Built . | . . . . . . . Authchips . | . . . . . . . Time . | . . . . . . . Total Robot Build Rating . | . . . . . . . Part Schematics Acquired 2 | . . . 1 1 . . Parts Built . | . . . . . . . Authchips . | . . . . . . . Time . | . . . . . . . Total Part Build Rating . | . . . . . . . Parts Repaired . | . . . . . . . Time . | . . . . . . . Parts Recycled . | . . . . . . . Recycled Matter . | . . . . . . . Retrieved Matter . | . . . . . . . Retrieved Components 9 | . . 9 . . . . Parts Scanalyzed 1 | . . . 1 . . . Part Schematics Acquired 1 | . . . 1 . . . Parts Damaged . | . . . . . . . Bothacking | -11 -10 -9 -8 -7 -7 -7 ------------ Run | Yrd Mat Mat Mat Fac Was Fac Used RIF Installer . | . . . . . . . Robots Hacked . | . . . . . . . Non-combat . | . . . . . . . Combat . | . . . . . . . Robot Hacks Applied . | . . . . . . . Relay Couplers Released . | . . . . . . . Fabnet Peak Effective % . | . . . . . . . Robots Rewired . | . . . . . . . Allies Hacked . | . . . . . . . Hacks Repelled . | . . . . . . . Allies | -11 -10 -9 -8 -7 -7 -7 -------- Run | Yrd Mat Mat Mat Fac Was Fac Total Allies 1 | . . . . . 1 . Largest Group 1 | . . . . . 1 . Highest-Rated Group 31 | . . . . . 31 . Highest-Rated Ally 31 | . . . . . 31 . Total Orders . | . . . . . . . Ally Attacks 9 | . . . . . 9 . Total Damage 145 | . . . . . 145 . Kills . | . . . . . . . Allies Corrupted . | . . . . . . . Allies Melted . | . . . . . . . Intel | -11 -10 -9 -8 -7 -7 -7 ------- Run | Yrd Mat Mat Mat Fac Was Fac Robot Analysis Total . | . . . . . . . Derelict Logs Recovered . | . . . . . . . Drone Launches . | . . . . . . . Drone Recoveries . | . . . . . . . Exploration | -11 -10 -9 -8 -7 -7 -7 ------------- Run | Yrd Mat Mat Mat Fac Was Fac Turns Passed 6845 | 96 1068 1809 1334 711 189 1638 Spaces Moved 3407 | 55 589 905 577 397 218 666 Core 675 | 3 . . . . 177 495 Treads 2561 | 52 589 905 577 397 41 . Legs 171 | . . . . . . 171 Wheels . | . . . . . . . Hover . | . . . . . . . Flight . | . . . . . . . Fastest Speed 50 | 50 160 160 170 170 50 50 Average Speed 167 | 154 160 169 170 170 81 198 Slowest Speed 350 | 160 160 170 170 170 170 350 Overloaded Moves . | . . . . . . . Propulsion Burnouts . | . . . . . . . Robots Hopped . | . . . . . . . Cave-ins Triggered . | . . . . . . . Exploration Rate (%) 32 | 4 39 47 32 8 87 12 Regions Visited 6 Branch Regions . Pre-discovered Areas . | . . . . . . . Known Exits Taken 2 | . . 1 1 . . . Unknown Exits Taken 2 | 1 1 . . . . . Scrap Searched . | . . . . . . . Spaces Dug . | . . . . . . . Terrain Destroyed 80 | . . 14 66 . . . Melee . | . . . . . . . Projectile . | . . . . . . . AOE 80 | . . 14 66 . . . Terrain Rammed . | . . . . . . . Walls Destroyed . | . . . . . . . Machines Disabled . | . . . . . . . Actions | -11 -10 -9 -8 -7 -7 -7 --------- Run | Yrd Mat Mat Mat Fac Was Fac Total 4189 | 63 670 1082 802 425 221 926 Wait 360 | . 22 77 82 15 . 164 Move 3402 | 54 588 904 576 397 217 666 Hop . | . . . . . . . Pick Up 51 | 3 13 12 18 2 . 3 Fast Attach 31 | 6 1 4 1 1 1 17 Attach 16 | . 1 3 7 1 . 4 Detach 2 | . . . . 1 . 1 Swap 37 | . 9 9 17 . . 2 Drop 42 | . 8 18 11 2 . 3 Fire 190 | . 27 53 71 6 3 30 Melee . | . . . . . . . Ram 33 | . . . . . . 33 Kick 3 | . . . . . . 3 Crush 22 | . 1 2 19 . . . Escape Stasis . | . . . . . . . Rewire . | . . . . . . . Trap . | . . . . . . . Miscellaneous . | . . . . . . . Route ------- -11/Scrapyard -10/Materials -9/Materials -8/Materials -7/Factory (discovered 2 exits: *Fac x2) -7/Waste -7/Factory (discovered 1 exit: [*Low]) History --------- Turn | Location | Event 29 | -11/Scrapyard | Discovered new exit (range 15) 97 | -11/Scrapyard | Entered Materials 304 | -10/Materials | Build established: Mutant 973 | -10/Materials | Discovered new exit (range 8) 1165 | -10/Materials | Entered another Materials area 1165 | -9/Materials | Evolved 2 slots: Propulsion x1, Utility x1 2825 | -9/Materials | Discovered new exit (range 15) 2969 | -9/Materials | Identified exit to Materials 2974 | -9/Materials | Entered another Materials area 2974 | -8/Materials | Evolved 2 slots: Utility x2 3739 | -8/Materials | Build established: Scavenger-Mutant 3859 | -8/Materials | Lost 3 parts (1p1u1w) 4161 | -8/Materials | Discovered new exit (range 17) 4175 | -8/Materials | Build established: Skirmisher 4247 | -8/Materials | Identified exit to Factory 4308 | -8/Materials | Entered Factory 4308 | -7/Factory | Evolved 2 slots: Power x1, Utility x1 4698 | -7/Factory | Discovered new exit (range 14) 4752 | -7/Factory | Discovered new exit (range 18) 4761 | -7/Factory | Identified exit to Factory 5019 | -7/Factory | Sucked down chute 5019 | -7/Factory | Entered Waste 5020 | -7/Waste | Met a frightened Derelict 5048 | -7/Waste | Spotted C-40 Crusher 5054 | -7/Waste | Spotted C-40 Crusher 5067 | -7/Waste | Spotted C-40 Crusher 5079 | -7/Waste | Spotted C-40 Crusher 5083 | -7/Waste | Spotted C-40 Crusher 5091 | -7/Waste | Crushed by Compactor (1 part destroyed, 2 dropped) 5094 | -7/Waste | Crushed by Compactor (1 part destroyed, 1 dropped) 5096 | -7/Waste | Crushed by Compactor (1 part destroyed, 2 dropped) 5127 | -7/Waste | Lost 3 parts (1n2u) 5129 | -7/Waste | Spotted C-40 Crusher 5154 | -7/Waste | Released all parts (5) 5185 | -7/Waste | Discovered new exit (range 12) 5208 | -7/Waste | Entered Factory 5416 | -7/Factory | Build established: Mutant 6226 | -7/Factory | Core integrity fell below 50% 6253 | -7/Factory | System corruption reached 10% 6274 | -7/Factory | Lost 3 parts (1p2w) 6563 | -7/Factory | Core integrity fell below 20% 6833 | -7/Factory | Discovered new exit (range 15) 6846 | -7/Factory | Destroyed by Y-54 Guardian with Flak Gun Last Messages --------------- 06777_ K-01 Serf collects debris. 06781_ Acquired 1 matter. 06782_ Acquired 6 matter. 06783_ Acquired 2 matter. 06784_ K-01 Serf collects debris. 06785_ R-06 Scavenger collects Gauss Rifle. 06787_ K-01 Serf collects debris. 06789_ R-06 Scavenger collects Imp. Melee Analysis Suite. 06790_ K-01 Serf collects debris. 06794_ System corrupted: Component data lost. 06801_ Penetrated by Slug. 06814_ System corrupted: Matter fused (-6). 06814_ Matter Pump disabled. 06817_ Penetrated by Slug. 06821_ Kicked A-02 Transporter out of the way. 06829_ System corrupted: Matter fused (-6). 06833_ EXIT=FOUND 06837_ Slug penetrates Neutrino Reactor. 06846_ System corrupted: Component data lost. Map ----- +----------------------------------------------------+ | ?????????????????????????????????????????????????? | | ?????????????????????????????????????????????????? | | ?????????????????????????????????????????????????? | | ?????????????????????????????????????????????????? | | ?????????????????????????????????????????????????? | | ?????????????????????????????????????????????????? | | ?????????????????????????????????? ??????????????? | | ??????????????????????????????????